fUST/lending_fUST_20260203
["ID","MTS","AMOUNT","RATE_DAILY","PERIOD"]
[404340537,1770069044287,-500.0,0.00039993,31]
[404340539,1770069044296,-629.54975304,0.00039993,7]
[404340541,1770069044305,-500.0,0.00039993,31]
[404340543,1770069044314,-500.0,0.00039993,7]
[404340545,1770069044323,-500.0,0.00039993,31]
[404340546,1770069044333,-500.0,0.00039993,7]
[404340549,1770069044342,-500.0,0.00039993,31]
[404340550,1770069044351,-500.0,0.00039993,31]
[404340552,1770069044360,-500.0,0.00039993,31]
[404340555,1770069044370,-89.06923395,0.00039993,7]
[404340557,1770069044382,-410.93076605,0.00039993,7]
[404340559,1770069044391,-500.0,0.00039993,31]
[404340561,1770069044399,-500.0,0.00039993,7]
[404340563,1770069044408,-500.0,0.00039993,31]
[404340565,1770069044418,-500.0,0.00039993,7]
[404340567,1770069044427,-488.79488379,0.00039993,31]
[404340569,1770069044436,-500.0,0.00039993,31]
[404340571,1770069044445,-500.0,0.00039993,31]
[404340573,1770069044454,-500.0,0.00039993,31]
[404340574,1770069044463,-500.0,0.00039993,31]
[404340576,1770069044472,-500.0,0.00039993,31]
[404340578,1770069044481,-500.0,0.00039993,31]
[404340580,1770069044491,-500.0,0.00039993,31]
[404340582,1770069044500,-500.0,0.00039993,31]
[404340584,1770069044510,-177.14028972,0.00039993,31]
[404340587,1770069044522,-322.85971028,0.00039993,31]
[404340589,1770069044530,-500.0,0.00039993,31]
[404340591,1770069044540,-500.0,0.00039993,31]
[404340593,1770069044549,-500.0,0.00039993,31]
[404340595,1770069044558,-500.0,0.00039993,31]
[404340597,1770069044566,-500.0,0.00039993,31]
[404340599,1770069044576,-500.0,0.00039993,31]
[404340601,1770069044586,-500.0,0.00039993,31]
[404340603,1770069044595,-500.0,0.00039993,31]
[404340605,1770069044604,-500.0,0.00039993,31]
[404340607,1770069044613,-500.0,0.00039993,31]
[404340609,1770069044622,-500.0,0.00039993,31]
[404340611,1770069044631,-500.0,0.00039993,31]
[404340613,1770069044641,-500.0,0.00039993,31]
[404340615,1770069044651,-174.481,0.00039996,56]
[404340617,1770069044660,-225.82816671,0.00039999,31]
[404340619,1770069044669,-315.7456126,0.00039999,31]
[404340621,1770069044678,-281.36820873,0.00039999,31]
[404340623,1770069044687,-5029.86293159,0.0004,2]
[404340625,1770069044698,-470.31115789,0.0004,2]
[404340627,1770069044709,-6069.33991248,0.0004,2]
[404340766,1770069045971,-3546.48617756,0.0004,2]
[404341539,1770069378289,150.0,0.00039238,120]
[404341914,1770070231905,-352.01140376,0.00030137,120]
[404341943,1770070238010,-40.98859624,0.00030137,120]
[404341945,1770070238020,-180.05176298,0.00033367,4]
[404341947,1770070238029,-720.20705194,0.00033852,4]
[404341949,1770070238038,-1104.170928,0.00036151,2]
[404341951,1770070238047,-32.13107584,0.00036814,60]
[404341954,1770070238059,-186.11243816,0.00036814,60]
[404341956,1770070238068,-1000.0,0.00036823,30]
[404341958,1770070238077,-179.0,0.00037182,2]
[404341960,1770070238087,-222.22222223,0.000388,2]
[404341961,1770070238096,-3142.69330353,0.00039,120]
[404341964,1770070238106,-318.84166362,0.00039235,2]
[404341966,1770070238115,-1000.0,0.00039267,30]
[404341968,1770070238124,-1000.0,0.00039312,30]
[404341970,1770070238133,-2000.0,0.00039368,30]
[404341972,1770070238143,-231.65699121,0.00039728,2]
[404341974,1770070238152,-335.72,0.0003999,10]
[404341976,1770070238162,-370.49,0.0003999,10]
[404341978,1770070238171,-602.02456462,0.00039991,31]
[404341980,1770070238180,-560.00547213,0.00039991,7]
[404341982,1770070238189,-500.0,0.00039991,31]
[404341983,1770070238199,-500.0,0.00039991,31]
[404341985,1770070238208,-500.0,0.00039991,31]
[404341988,1770070238220,-500.0,0.00039991,31]
[404341990,1770070238230,-500.0,0.00039991,31]
[404341992,1770070238239,-598.87948838,0.00039991,31]
[404341994,1770070238248,-500.0,0.00039991,31]
[404341995,1770070238259,-500.0,0.00039991,31]
[404341998,1770070238268,-500.0,0.00039991,31]
[404342000,1770070238278,-500.0,0.00039991,31]
[404342001,1770070238288,-500.0,0.00039991,31]
[404342002,1770070238300,-500.0,0.00039991,31]
[404342003,1770070238309,-500.0,0.00039991,31]
[404342004,1770070238318,-500.0,0.00039991,31]
[404342005,1770070238328,-500.0,0.00039991,31]
[404342006,1770070238337,-500.0,0.00039991,31]
[404342007,1770070238346,-500.0,0.00039991,31]
[404342008,1770070238355,-359.35439447,0.00039991,31]
[404342009,1770070238371,-140.64560553,0.00039991,31]
[404342010,1770070238381,-500.0,0.00039991,31]
[404342011,1770070238391,-500.0,0.00039991,31]
[404342012,1770070238400,-500.0,0.00039991,31]
[404342013,1770070238410,-500.0,0.00039991,31]
[404342014,1770070238420,-500.0,0.00039991,31]
[404342015,1770070238430,-500.0,0.00039991,31]
[404342016,1770070238439,-500.0,0.00039991,31]
[404342017,1770070238448,-500.0,0.00039991,31]
[404342018,1770070238458,-513.96386726,0.00039991,31]
[404342019,1770070238467,-500.0,0.00039991,31]
[404342020,1770070238477,-500.0,0.00039991,31]
[404342021,1770070238486,-500.0,0.00039991,31]
[404342022,1770070238495,-1031.0850042,0.00039996,2]
[404342023,1770070238505,-11447.2126463,0.00039996,2]
[404342024,1770070238514,-158.07971669,0.00039998,31]
[404342025,1770070238523,-260.81783365,0.00039998,31]
[404342026,1770070238533,-221.02192882,0.00039998,31]
[404342027,1770070238543,-500.0,0.00039998,31]
[404342028,1770070238552,-503.4201334,0.00039999,120]
[404342029,1770070238562,-93415.00656494,0.0004,2]
[404342030,1770070238572,-776.0,0.0004,30]
[404342031,1770070238582,-270.84,0.0004,30]
[404342032,1770070238592,-500.0,0.0004,2]
[404342033,1770070238601,-195320.42714584,0.0004,2]
[404342035,1770070238611,-500.0,0.0004,120]
[404342037,1770070238621,-500.0,0.0004,120]
[404342039,1770070238630,-330.320432,0.0004,120]
[404342041,1770070238640,-330.320432,0.0004,120]
[404342043,1770070238649,-330.320432,0.0004,120]
[404342045,1770070238658,-330.320432,0.0004,120]
[404342047,1770070238668,-204.78,0.0004,120]
[404342049,1770070238677,-308.14665,0.00040161,2]
[404342051,1770070238686,-179.0,0.00040182,2]
[404342053,1770070238695,-218.243514,0.00040239,60]
[404342055,1770070238705,-600.0,0.00040799,60]
[404342057,1770070238714,-308.14665,0.00041852,2]
[404342059,1770070238723,-204.78,0.00042,120]
[404342061,1770070238733,-179.0,0.00043182,2]
[404342063,1770070238742,-308.14665,0.00043543,2]
[404342065,1770070238751,-218.243514,0.00043664,60]
[404342066,1770070238760,-250.0,0.00043726,120]
[404342068,1770070238769,-250.0,0.00043726,120]
[404342070,1770070238778,-250.0,0.00043726,120]
[404342072,1770070238787,-250.0,0.00043726,120]
[404342074,1770070238796,-305.857599,0.00044173,30]
[404342076,1770070238805,-305.857599,0.00044173,30]
[404342078,1770070238814,-305.857599,0.00044173,30]
[404342080,1770070238823,-573.91499451,0.00044613,2]
[404342082,1770070238833,-720.0,0.00044879,60]
[404342084,1770070238845,-2554.218391,0.00045061,2]
[404342086,1770070238854,-308.14665,0.00045233,2]
[404342088,1770070238864,-151.0,0.000459,27]
[404342090,1770070238874,-172.922,0.00046182,2]
[404342092,1770070238883,-569.9231586,0.00046192,2]
[404342094,1770070238892,-308.14665,0.00046924,2]
[404342096,1770070238901,-218.243514,0.00047088,60]
[404342098,1770070238910,-151.0,0.000473,27]
[404342100,1770070238920,-605.7441585,0.00048219,30]
[404342102,1770070238929,-605.7441585,0.00048493,30]
[404342104,1770070238939,-605.7441585,0.00048493,30]
[404342106,1770070238948,-605.7441585,0.00048493,30]
[404342108,1770070238957,-500.0,0.000485,120]
[404342110,1770070238967,-308.14665,0.00048615,2]
[404342111,1770070238977,-151.0,0.000487,27]
[404342113,1770070238986,-10000.0,0.000489,2]
[404342115,1770070238995,-864.0,0.00049367,120]
[404342117,1770070239004,-663.61,0.000496,120]
[404342119,1770070239014,-160.0,0.000496,120]
[404342121,1770070239024,-3095.31626555,0.00049616,120]
[404342123,1770070239033,-400.0,0.00049804,31]
[404342125,1770070239042,-270.84,0.000499,30]
[404342127,1770070239052,-1948918.35232546,0.0005,14]
[404342131,1770070239075,-17719.33305966,0.0005,14]
[404342825,1770070245918,-1166.07484346,0.0005,14]
[404350564,1770071302042,1349.99999981,0.00039415,120]
[404350565,1770071305375,3460.20363815,0.00039415,120]
[404350566,1770071311282,6719.27476061,0.00039415,120]
[404350629,1770071432032,-500.0,0.00025999,2]
[404350631,1770071432042,-500.0,0.00025999,2]
[404350633,1770071432051,-500.0,0.00025999,2]
[404350635,1770071432060,-500.0,0.00025999,2]
[404350637,1770071432070,-500.0,0.00025999,2]
[404350639,1770071432080,-500.0,0.00025999,2]
[404350641,1770071432090,-500.0,0.00025999,2]
[404350651,1770071432100,-500.0,0.00025999,2]
[404350653,1770071432191,-500.0,0.00025999,2]
[404350655,1770071432201,-500.0,0.00025999,2]
[404350657,1770071432210,-500.0,0.00025999,2]
[404350659,1770071432220,-500.0,0.00025999,2]
[404350661,1770071432229,-500.0,0.00025999,2]
[404350663,1770071432238,-550.63260184,0.00025999,2]
[404350665,1770071432247,-500.0,0.00025999,2]
[404350667,1770071432257,-500.0,0.00025999,2]
[404350669,1770071432266,-5893.87058362,0.00026,30]
[404350771,1770071438196,-1248.73244748,0.00026,30]
[404350773,1770071438209,-13427.2122506,0.00026,30]
[404351456,1770071445132,-288.07357235,0.00026,30]
[404351459,1770071445153,-433.3,0.00026,30]
[404351590,1770071446461,-1444.50932922,0.00026,30]
[404352131,1770071506196,698.5,0.00039415,30]
[404352132,1770071506251,590.5,0.00039415,30]
[404352278,1770071759593,-2800.69027391,0.0002526,2]
[404352279,1770071759626,-277.54840615,0.0002526,2]
[404352280,1770071759660,-1200.0,0.00025999,2]
[404352281,1770071759886,-2512.59222183,0.00026,30]
[404352282,1770071759921,-300.0,0.00026574,2]
[404352283,1770071759953,-300.0,0.00026574,2]
[404352284,1770071759985,-300.0,0.00026574,2]
[404352285,1770071760018,-300.0,0.00026574,2]
[404352305,1770072230010,-889.14991763,0.00024953,2]
[404352306,1770072230046,-500.0,0.00025999,2]
[404352352,1770072395686,294.0,0.00039534,30]
[404352721,1770072632368,-1000.0,0.00025999,2]
[404352723,1770072632378,-400.08699331,0.00027,2]
[404352725,1770072632389,-599.91300669,0.00027,2]
[404352727,1770072632398,-336.974734,0.00031299,2]
[404352729,1770072632408,-1000.0,0.00033,2]
[404352731,1770072632417,-201.178163,0.00034266,60]
[404352733,1770072632426,-1000.0,0.00035,2]
[404352735,1770072632436,-182.57248355,0.00035002,7]
[404352737,1770072632445,-207.52985459,0.00035002,7]
[404352739,1770072632454,-500.0,0.00035002,7]
[404352741,1770072632463,-500.0,0.00035002,7]
[404352743,1770072632472,-566.88710282,0.00035002,7]
[404352745,1770072632481,-474.46392911,0.00035002,7]
[404352747,1770072632491,-4211.15938557,0.00035003,2]
[404352773,1770072638394,-169.08618077,0.00031,120]
[404352775,1770072638403,-169.08618077,0.000319,120]
[404352777,1770072638413,-169.08618077,0.000329,120]
[404352779,1770072638422,-169.08618077,0.000339,120]
[404352781,1770072638432,-169.08618077,0.000349,120]
[404352784,1770072638443,-8882.19309615,0.00035003,2]
[404352786,1770072638454,-29294.17114567,0.00035003,2]
[404352793,1770072638519,-17830.11958321,0.00035003,2]
[404352795,1770072638528,-1000.0,0.00035176,30]
[404352797,1770072638539,-1000.0,0.00036,2]
[404352799,1770072638549,-1561.10011301,0.00038,2]
[404352801,1770072638558,-208.01484243,0.00039315,2]
[404352803,1770072638568,-500.0,0.00039727,2]
[404352805,1770072638578,-150.26619178,0.00039728,2]
[404352807,1770072638589,-500.0,0.00039999,2]
[404352809,1770072638605,-500.0,0.00039999,2]
[404352811,1770072638621,-389.93748134,0.00039999,2]
[404352813,1770072638631,-54237.51013824,0.0004,2]
[404352816,1770072638642,-1646.22376286,0.0004,2]
[404352818,1770072638652,-600.0,0.00040799,60]
[404352819,1770072638661,-1019.27303025,0.0004128,2]
[404352820,1770072638672,-150.0,0.00043453,120]
[404352821,1770072638681,-720.0,0.00044879,60]
[404352822,1770072638690,-242.0,0.00045,21]
[404352823,1770072638699,-177.0,0.00045453,120]
[404352824,1770072638708,-162.0,0.00047453,120]
[404352825,1770072638717,-201.178163,0.00047965,60]
[404352826,1770072638726,-10000.0,0.000489,2]
[404352827,1770072638735,-284.0100163,0.0004926,2]
[404352828,1770072638744,-710.0,0.0004936,31]
[404352829,1770072638753,-864.0,0.00049367,120]
[404352830,1770072638762,-682.37,0.0004999,30]
[404352831,1770072638772,-819.2,0.0004999,10]
[404352832,1770072638782,-1916457.32401547,0.0005,14]
[404352833,1770072638798,-789.20936132,0.0005,14]
[404352902,1770072639567,459.0,0.00039534,30]
[404352964,1770072640135,539.0,0.00039534,30]
[404353009,1770072640544,1517.0,0.00039534,30]
[404353015,1770072640587,-207.34064317,0.00035002,7]
[404353017,1770072640596,-31173.7833832,0.0005,14]
[404353024,1770072640646,-32631.56911352,0.0005,14]
[404353529,1770072645992,-191.9744,0.00031,120]
[404353531,1770072646001,-185.4228781,0.00047441,30]
[404353533,1770072646011,-3456.39347663,0.0005,14]
[404353535,1770072646025,-560.0,0.0005,14]
[404353591,1770072646578,-499.82412927,0.0004999,10]
[404353598,1770072646637,-738.76587073,0.0004999,10]
[404353600,1770072646646,-16743.42210227,0.0005,14]
[404353606,1770072646697,-70731.90017508,0.0005,14]
[404353608,1770072646708,-3722.06308158,0.0005,14]
[404354209,1770072663113,500.0,0.00013699,2]
[404354210,1770072663152,459.86281749,0.00013273,2]
[404354211,1770072663185,462.44559537,0.00013273,2]
[404354212,1770072663222,518.71089634,0.00013699,2]
[404354213,1770072665582,500.0,0.00013273,2]
[404354214,1770072666054,500.0,0.00013699,2]
[404354215,1770072666539,500.0,0.00013273,2]
[404354216,1770072667331,500.0,0.00013273,2]
[404354217,1770072668747,300.0,0.00013673,2]
[404354220,1770072669262,500.0,0.00013273,2]
[404354223,1770072669533,500.0,0.00013273,2]
[404354243,1770072678723,500.0,0.00013273,2]
[404354244,1770072679362,500.0,0.00013699,2]
[404354245,1770072679715,500.0,0.00013699,2]
[404354246,1770072679787,500.0,0.00013273,2]
[404354247,1770072680370,500.0,0.00013273,2]
[404354248,1770072680796,500.0,0.00013273,2]
[404354255,1770072682980,500.0,0.00013273,2]
[404354256,1770072683014,1000.0,0.00013821,2]
[404354258,1770072683056,258.9906908,0.00013699,2]
[404354259,1770072683082,241.0093092,0.00013699,2]
[404354289,1770072708310,4388.5,0.00015342,2]
[404354290,1770072723133,500.0,0.00013699,2]
[404354291,1770072723175,626.30118058,0.00014247,2]
[404354292,1770072723487,500.0,0.00013273,2]
[404354293,1770072723532,1000.0,0.00013821,2]
[404354294,1770072725488,375.59928097,0.00013699,2]
[404354295,1770072726279,500.0,0.00013273,2]
[404354296,1770072726337,500.0,0.00013273,2]
[404354297,1770072728918,503.70808855,0.00013273,2]
[404354298,1770072728996,538.71956343,0.00013699,2]
[404354299,1770072729122,326.17257727,0.00013273,2]
[404354300,1770072729152,173.82742273,0.00013273,2]
[404354301,1770072729193,1000.0,0.00013821,2]
[404354359,1770072783466,318.32989685,0.00013699,2]
[404354360,1770072783571,592.41079471,0.00013273,2]
[404354361,1770072783738,289.45772144,0.00013699,2]
[404354362,1770072783826,500.0,0.00013273,2]
[404354363,1770072783862,669.15596012,0.00013821,2]
[404354365,1770072786181,500.0,0.00013699,2]
[404354366,1770072786546,500.33960277,0.00013699,2]
[404354367,1770072786847,158.73500083,0.00013699,2]
[404354368,1770072787494,300.0,0.00013673,2]
[404354369,1770072787547,300.0,0.00014221,2]
[404354370,1770072788745,500.0,0.00013699,2]
[404354371,1770072788779,500.0,0.00013273,2]
[404354372,1770072788812,1000.0,0.00014247,2]
[404354373,1770072788849,500.0,0.00013821,2]
[404354374,1770072790858,500.0,0.00013699,2]
[404354375,1770072790997,1000.0,0.00014247,2]
[404354376,1770072798205,500.0,0.00013699,2]
[404354377,1770072798257,197.75360055,0.00014247,2]
[404354378,1770072798283,302.24639945,0.00014247,2]
[404354379,1770072798435,175.84126355,0.00013273,2]
[404354380,1770072798717,500.0,0.00014247,2]
[404354381,1770072798795,500.0,0.00013699,2]
[404354382,1770072799191,500.0,0.00013821,2]
[404354383,1770072799253,500.0,0.00013273,2]
[404354394,1770072801662,500.0,0.00013699,2]
[404354395,1770072801717,500.0,0.00014247,2]
[404354413,1770072844013,500.0,0.00013699,2]
[404354414,1770072844047,498.67567994,0.00013699,2]
[404354415,1770072844553,500.0,0.00013273,2]
[404354416,1770072844609,1000.0,0.00013821,2]
[404354417,1770072844661,1500.0,0.00014368,2]
[404354418,1770072847806,500.0,0.00013699,2]
[404354440,1770072903760,1000.0,0.00014247,2]
[404354441,1770072903805,500.0,0.00013699,2]
[404354442,1770072903839,500.0,0.00013273,2]
[404354443,1770072903874,23.24665706,0.00013821,2]
[404354444,1770072903905,1096.32648362,0.00013821,2]
[404354445,1770072904107,500.0,0.00013273,2]
[404354446,1770072904146,1130.57395148,0.00014247,2]
[404354447,1770072904182,1000.0,0.00013821,2]
[404354448,1770072904218,500.0,0.00013699,2]
[404354449,1770072904254,500.0,0.00013699,2]
[404354450,1770072904386,500.0,0.00013699,2]
[404354451,1770072904424,500.0,0.00014247,2]
[404354454,1770073023126,181.81023439,0.00013273,2]
[404354455,1770073023185,500.0,0.00013699,2]
[404354456,1770073023254,259.55539897,0.00014247,2]
[404354457,1770073023459,485.27032989,0.00013273,2]
[404354458,1770073027101,500.0,0.00013273,2]
[404354459,1770073027160,500.0,0.00013821,2]
[404354463,1770073084270,500.0,0.00013699,2]
[404354464,1770073085180,500.0,0.00013699,2]
[404354465,1770073085245,846.47360165,0.00014247,2]
[404354466,1770073085277,153.52639835,0.00014247,2]
[404354467,1770073086079,500.0,0.00013699,2]
[404354468,1770073087236,500.0,0.00013699,2]
[404354471,1770073144715,500.0,0.00013273,2]
[404354472,1770073144753,500.0,0.00013699,2]
[404354473,1770073144787,1059.00085584,0.00013821,2]
[404354474,1770073204682,500.0,0.00013699,2]
[404354475,1770073204725,500.0,0.00013699,2]
[404354476,1770073204761,500.0,0.00013273,2]
[404354477,1770073204799,613.5354249,0.00014247,2]
[404354478,1770073204836,1000.0,0.00013821,2]
[404354479,1770073204869,474.23438198,0.00014247,2]
[404354480,1770073204903,1500.0,0.00014368,2]
[404354481,1770073205045,500.0,0.00013699,2]
[404354482,1770073205104,1000.0,0.00014247,2]
[404354483,1770073206310,501.93006265,0.00013699,2]
[404354484,1770073208257,500.0,0.00013273,2]
[404354485,1770073208313,500.0,0.00013821,2]
[404354498,1770073263157,500.0,0.00013699,2]
[404354499,1770073263197,500.0,0.00013699,2]
[404354500,1770073263236,500.0,0.00013699,2]
[404354501,1770073266174,500.0,0.00013699,2]
[404354502,1770073266711,500.0,0.00013273,2]
[404354503,1770073266745,500.0,0.00013273,2]
[404354504,1770073266787,1000.0,0.00013821,2]
[404354505,1770073266824,1000.0,0.00014368,2]
[404354506,1770073266873,500.0,0.00013273,2]
[404354513,1770073267051,500.0,0.00013273,2]
[404354515,1770073267088,1000.0,0.00013821,2]
[404354519,1770073267167,524.63271645,0.00014368,2]
[404354521,1770073267242,538.93586168,0.00013821,2]
[404354531,1770073268440,500.0,0.00013273,2]
[404354532,1770073268501,500.0,0.00013821,2]
[404354547,1770073323929,320.27,0.00014247,2]
[404354548,1770073323959,179.73,0.00014247,2]
[404354549,1770073324003,500.0,0.00013699,2]
[404354550,1770073324164,500.0,0.00013273,2]
[404354551,1770073324226,500.0,0.00013821,2]
[404354684,1770073503228,500.0,0.00013699,2]
[404354685,1770073503279,1000.0,0.00014247,2]
[404354686,1770073503587,500.0,0.00013699,2]
[404354687,1770073503638,605.80413696,0.00013821,2]
[404354688,1770073503676,500.0,0.00013273,2]
[404354689,1770073503947,272.68459961,0.00013273,2]
[404354722,1770073588123,150.0,0.0002,2]
[404354763,1770073680779,249.56,9.99e-05,2]
[404354769,1770073743685,181.96269739,0.00013273,2]
[404354770,1770073745846,592.41079471,0.00013273,2]
[404354844,1770073832624,-320.27,0.00030078,2]
[404354845,1770073832635,-1200.0,0.00030999,2]
[404354846,1770073832645,-187.47258831,0.00031,120]
[404354847,1770073832655,-175.63363289,0.00031,120]
[404354848,1770073832664,-199.61462149,0.00031,120]
[404354849,1770073832675,-290.55326978,0.00031,120]
[404354850,1770073832686,-199.46995797,0.00031,120]
[404354851,1770073832696,-230.62094646,0.00031,120]
[404354852,1770073832705,-238.5573364,0.00031,120]
[404354854,1770073832714,-227.86094189,0.00031,120]
[404354856,1770073832725,-300.0,0.00031619,30]
[404354858,1770073832734,-300.0,0.00031619,30]
[404354860,1770073832745,-300.0,0.00031619,30]
[404354862,1770073832755,-300.0,0.00031619,30]
[404354865,1770073832766,-300.0,0.00031619,30]
[404354867,1770073832776,-300.0,0.00031619,30]
[404354869,1770073832786,-300.0,0.00031619,30]
[404354871,1770073832795,-300.0,0.00031619,30]
[404354873,1770073832805,-300.0,0.00031619,30]
[404354875,1770073832815,-300.0,0.00031619,30]
[404354877,1770073832824,-300.0,0.00031619,30]
[404354879,1770073832833,-300.0,0.00031619,30]
[404354880,1770073832843,-300.0,0.00031619,30]
[404354882,1770073832852,-300.0,0.00031619,30]
[404354884,1770073832862,-300.0,0.00031619,30]
[404354886,1770073832871,-155.31,0.00031619,2]
[404354889,1770073832880,-175.63363289,0.000319,120]
[404354891,1770073832890,-199.46995797,0.000319,120]
[404354892,1770073832899,-175.63363289,0.000329,120]
[404354895,1770073832909,-199.46995797,0.000329,120]
[404354897,1770073832918,-175.63363289,0.000339,120]
[404354898,1770073832928,-175.63363289,0.000349,120]
[404354899,1770073832937,-552.085464,0.00038045,2]
[404354900,1770073832947,-2000.0,0.0003959,30]
[404354901,1770073832956,-1153.9651208,0.0003959,7]
[404354902,1770073832966,-206.00480381,0.00039728,2]
[404354903,1770073832975,-198.01440201,0.00039999,120]
[404354904,1770073832985,-582.34,0.000488,2]
[404354905,1770073832995,-500.0,0.00048899,120]
[404354906,1770073833004,-151.0,0.00048899,30]
[404354907,1770073833014,-157.62,0.000489,2]
[404354908,1770073833023,-10000.0,0.000489,2]
[404354909,1770073833033,-710.0,0.0004936,31]
[404354910,1770073833042,-151.0,0.00049584,32]
[404354911,1770073833052,-600.0,0.00049876,120]
[404354912,1770073833063,-331.22098917,0.000499,22]
[404354913,1770073833073,-207.33535066,0.0004999,4]
[404354914,1770073833088,-1554.44,0.0004999,10]
[404354915,1770073833098,-500.0,0.00049999,14]
[404354916,1770073833107,-500.0,0.00049999,14]
[404354917,1770073833117,-500.0,0.00049999,14]
[404354918,1770073833126,-500.0,0.00049999,14]
[404354919,1770073833136,-200.0,0.00049999,14]
[404354920,1770073833146,-200.0,0.00049999,14]
[404354921,1770073833155,-250.0,0.00049999,14]
[404354922,1770073833166,-500.0,0.00049999,14]
[404354923,1770073833175,-500.0,0.00049999,14]
[404354924,1770073833187,-151.66321493,0.00049999,14]
[404354925,1770073833196,-500.0,0.00049999,14]
[404354926,1770073833205,-500.0,0.00049999,14]
[404354927,1770073833215,-500.0,0.00049999,14]
[404354928,1770073833224,-500.0,0.00049999,14]
[404354929,1770073833315,-500.0,0.00049999,14]
[404354930,1770073833325,-500.0,0.00049999,14]
[404354931,1770073833334,-200.0,0.00049999,14]
[404354932,1770073833344,-214.47878841,0.00049999,120]
[404354933,1770073833353,-237.34020626,0.00049999,120]
[404354934,1770073833363,-166.13814438,0.00049999,120]
[404354935,1770073833372,-63902.75789613,0.0005,14]
[404354936,1770073833384,-1000.0,0.0005,14]
[404354937,1770073833400,-407.03070456,0.0005,14]
[404354938,1770073833412,-1139.04789496,0.0005,14]
[404354939,1770073833424,-3793.46952289,0.0005,14]
[404354940,1770073833435,-1390.87323657,0.0005,14]
[404354986,1770073838674,-1295.36,0.0004999,10]
[404354987,1770073838683,-2584.19531886,0.0005,14]
[404354994,1770073838738,-17117.1000024,0.0005,14]
[404355942,1770073848163,-207545.94070064,0.0005,14]
[404357038,1770074860041,5447.58777133,0.00018,2]
[404357039,1770074860074,10000.01,0.00018,2]
[404357040,1770074860106,10000.01,0.00018,2]
[404357041,1770074860137,10000.01,0.00018,2]
[404357042,1770074860168,10000.01,0.00018,2]
[404357043,1770074860198,10000.01,0.00018,2]
[404357044,1770074860224,4500.0,0.00018,2]
[404357045,1770074860250,22858.08872051,0.00018,2]
[404357049,1770074861747,-697.47321328,0.00018,2]
[404357050,1770074864563,-302.58027936,0.00018,2]
[404357072,1770074877188,413.1729431,0.0003968,120]
[404357096,1770074893996,-300.0,0.00017999,2]
[404357123,1770074897354,-3495.48555127,0.00018,2]
[404357125,1770074897559,-10000.01,0.00018,2]
[404357127,1770074897817,-10000.01,0.00018,2]
[404357140,1770074906064,-10000.01,0.00018,2]
[404357141,1770074906369,-2659.62273951,0.00018,2]
[404357142,1770074906497,-4680.76452098,0.00018,2]
[404357151,1770074918318,-302.58027936,0.000189,2]
[404357152,1770074933580,-5000.0,0.00019443,2]
[404357188,1770075031731,-1200.0,0.00029699,2]
[404357189,1770075031741,-5000.0,0.000297,2]
[404357190,1770075031752,-697.41972064,0.000299,2]
[404357191,1770075031762,-242.0,0.0003,2]